Cogmind - Beta 13 @@@ ROGUE MODE // 2024.04.18 @ 22:40:52 Player: RKyeun Result: Self-destructed Performance ------------- Evolutions (1) 500 Regions Visited (3) 600 Robots Destroyed (13) 65 Value Destroyed (228) 228 Prototype IDs (2) 40 Alien Tech Used (0) 0 Bonus (0) 0 TOTAL SCORE: 1433 Bonus ------- None Cogmind --------- Core Integrity 377/400 Matter 76/300 Energy 107/125 System Corruption 2% Temperature Cool (0) Movement Flying (31) Location -9/Materials Parts ------- > --- POWER (1) -------- Light Ion Engine > --- PROPULSION (4) --- Flight Unit Flight Unit Flight Unit Flight Unit > --- UTILITY (2) ------ Experimental Sensor Array Targeting Computer > --- WEAPON (2) ------- Faulty Improved EM Shotgun Rocket Launcher > --- INVENTORY (5) ---- Rocket Launcher Rocket Launcher Peak State ------------ > --- POWER ------------ Light Ion Engine > --- PROPULSION ------- Flight Unit Flight Unit Flight Unit Flight Unit > --- UTILITY ---------- Experimental Sensor Array Targeting Computer > --- WEAPON ----------- Improved EM Shotgun Rocket Launcher > --- INVENTORY -------- Rocket Launcher Rocket Launcher [Rating: 20] Favorites ----------- Power Light Ion Engine Engine Light Ion Engine Propulsion Flight Unit Leg Aluminum Leg Hover Unit Hover Unit Flight Unit Flight Unit Utility Targeting Computer Device Experimental Sensor Array Processor Targeting Computer Weapon Autogun Energy Gun Medium Laser Ballistic Gun Autogun Launcher Rocket Launcher Build | -11 -10 -10 -9 ------- Run | Yrd Mat Min Mat Slots Evolved 2 | . . . 2 Power . | . . . . Propulsion 2 | . . . 2 Utility . | . . . . Weapon . | . . . . Parts Attached 23 | 5 8 4 6 Power 3 | 1 . 1 1 Engine 3 | 1 . 1 1 Core . | . . . . Reactor . | . . . . Propulsion 10 | 2 4 2 2 Treads . | . . . . Leg 2 | 2 . . . Wheel . | . . . . Hover 2 | . 2 . . Flight 6 | . 2 2 2 Utility 2 | . 1 1 . Device 1 | . . 1 . Storage . | . . . . Processor 1 | . 1 . . Hackware . | . . . . Protection . | . . . . Artifact . | . . . . Weapon 8 | 2 3 . 3 Energy Gun 4 | 2 1 . 1 Energy Cannon . | . . . . Ballistic Gun 2 | . 2 . . Ballistic Cannon . | . . . . Launcher 2 | . . . 2 Special Weapon . | . . . . Impact Weapon . | . . . . Slashing Weapon . | . . . . Piercing Weapon . | . . . . Special Melee Weapon . | . . . . Unidentified Prototypes 2 | . . 1 1 Parts Lost 1 | . . . 1 Power 1 | . . . 1 Propulsion . | . . . . Utility . | . . . . Weapon . | . . . . Highest Loss Streak 1 | . . . 1 To Critical Strikes . | . . . . Average Slot Usage (%) 87 | . 74 98 100 Engine 13 | . 14 14 11 Leg 10 | . 22 . . Hover 3 | . 3 4 . Flight 14 | . 2 23 44 Device 6 | . . 13 11 Processor 9 | . 4 14 11 Energy Gun 10 | . 22 . . Ballistic Gun 15 | . 4 28 4 Naked Turns . | . . . . Heaviest Build 12 | 6 9 10 12 Greatest Support 20 | 20 20 12 16 Greatest Overweight (x) 1 | . 1 1 . Average Overweight (x) . | . . . . Largest Inventory Capacity 5 | 5 5 5 5 Average Capacity 5 | 5 5 5 5 Most Carried 5 | 2 5 5 5 Average Carried 3 | . 2 4 2 Final Capacity 5 | 5 5 5 5 Final Carried 5 | 2 3 5 2 Class Distribution -------------------- 100% | Mutant Dominant Class ---------------- Mutant | -10/Materials Mutant | -10/Mines Mutant | -9/Materials Resources | -11 -10 -10 -9 ----------- Run | Yrd Mat Min Mat Matter Collected 395 | 250 21 41 83 Remotely . | . . . . Salvage Created 201 | 35 55 41 70 Parts 22 | 1 5 7 9 Haulers Intercepted . | . . . . Recyclers Shooed 1 | . . . 1 Parts Field Recycled . | . . . . Retrieved Matter . | . . . . Parts Self-Destructed . | . . . . Prevented . | . . . . Kills | -11 -10 -10 -9 ------- Run | Yrd Mat Min Mat Combat Hostiles Destroyed 10 | 1 1 3 5 Guns 5 | 1 1 3 . AOE 5 | . . . 5 Classes Destroyed 6 | 1 1 1 3 Recycler 1 | . . . 1 Mechanic 1 | . . . 1 Watcher 1 | . 1 . . Swarmer 7 | . . 3 4 Grunt 2 | 1 1 . . Sentry 1 | . . . 1 Best Kill Streak 7 | 1 1 3 7 Combat Bots Only 5 | 1 1 3 5 Max Kills in Single Turn 4 | 1 1 1 4 Gunslinging . | . . . . Exploded 2 | . . . 2 Melee . | . . . . Uniques/NPCs Destroyed . | . . . . Combat | -11 -10 -10 -9 -------- Run | Yrd Mat Min Mat Hostile Shots Fired 36 | 5 8 5 18 Missed 12 | 1 1 3 7 Damage Taken 303 | 43 82 16 162 Core 57 | 10 24 . 23 Absorbed by Shields . | . . . . Core Remaining (%) 91 | 96 . 86 . Volleys Fired 23 | 4 8 4 7 Largest 2 | 2 2 2 2 Hottest 90 | 90 90 46 66 Shots Fired 46 | 8 16 8 14 Gun 32 | 8 16 8 . Cannon . | . . . . Launcher 14 | . . . 14 Special . | . . . . Kinetic 10 | . 2 8 . Thermal 21 | 8 13 . . Explosive 14 | . . . 14 Electromagnetic 1 | . 1 . . Robot Hit Streak 3 | 1 2 3 1 Robot Miss Streak 5 | 2 3 2 5 Penetration Max . | . . . . Secondary Targets . | . . . . Shots Hit Robots 16 | 3 7 4 2 Core Hits 22 | 2 3 3 14 Critical Kills . | . . . . Critical Parts Destroyed . | . . . . Critical Strikes . | . . . . Melee Attacks . | . . . . Impact . | . . . . Slashing . | . . . . Piercing . | . . . . Sneak Attacks . | . . . . Combat Hostiles . | . . . . Follow-up Attacks . | . . . . Damage Inflicted 715 | 37 87 57 534 Guns 181 | 37 87 57 . Cannons . | . . . . Explosions 534 | . . . 534 Melee . | . . . . Ramming . | . . . . Kinetic 72 | . 15 57 . Thermal 109 | 37 72 . . Explosive 534 | . . . 534 Electromagnetic . | . . . . Impact . | . . . . Slashing . | . . . . Piercing . | . . . . Highest Corruption 2 | . . . 2 Average Corruption 2 | . . . 2 Corruption Purged . | . . . . Corruption Blocked . | . . . . Overload Shots . | . . . . Overflow Damage 9 | . . . 9 Projectiles . | . . . . Explosions 9 | . . . 9 Melee . | . . . . Knockbacks . | . . . . Impact . | . . . . Kinetic . | . . . . Secondary . | . . . . Self-Inflicted Damage 38 | . . . 38 Shots 2 | . . . 2 Rammed . | . . . . Targets Rammed . | . . . . Kicked . | . . . . Crushed . | . . . . Highest Temperature 222 | 144 222 20 65 Average Temperature 63 | 75 96 10 31 Received Heat Transfer 93 | 24 42 . 27 Siege Activations . | . . . . Robots Corrupted . | . . . . Combat Hostiles . | . . . . Parts Fried . | . . . . Impact Corruptions . | . . . . Robots Melted . | . . . . Combat Hostiles . | . . . . Parts Melted . | . . . . Heat Transferred 297 | 99 198 . . Parts Sabotaged . | . . . . Parts Stolen . | . . . . Parts Stripped . | . . . . Power Chain Reactions . | . . . . Alert | -11 -10 -10 -9 ------- Run | Yrd Mat Min Mat Peak Influence 178 | 20 94 70 178 Initial 13 | . 13 . . Average 46 | 3 40 58 88 Maximum Alert Level . | . . . . Low Security (%) 100 | 100 100 100 100 Level 1 . | . . . . Level 2 . | . . . . Level 3 . | . . . . Level 4 . | . . . . Level 5 . | . . . . High Security . | . . . . Max Security . | . . . . Squads Dispatched 1 | . 1 . . Investigation 1 | . 1 . . Extermination . | . . . . Reinforcement . | . . . . Assault . | . . . . Garrison . | . . . . Intercept . | . . . . Searches Triggered . | . . . . Construction Impeded . | . . . . Haulers Reinforced . | . . . . Active Scanning Responses . | . . . . Cargo Convoy Interrupts . | . . . . Stealth | -11 -10 -10 -9 --------- Run | Yrd Mat Min Mat Distress Signals . | . . . . Communications Jammed . | . . . . Distress Signals . | . . . . Times Spotted 12 | 1 3 3 5 Peak Tracking Total 5 | 1 2 3 5 Tactical Retreats . | . . . . Traps | -11 -10 -10 -9 ------- Run | Yrd Mat Min Mat Traps Triggered . | . . . . Indirectly . | . . . . Trap Hack Attempts . | . . . . Triggered . | . . . . Disarmed . | . . . . Reprogrammed . | . . . . Reused . | . . . . Traps Extracted . | . . . . Installed . | . . . . Triggered . | . . . . Machines | -11 -10 -10 -9 ---------- Run | Yrd Mat Min Mat Machines Disabled 2 | . 1 . 1 Max in Single Turn 1 | . 1 . 1 Machines Repaired . | . . . . Machines Dismantled . | . . . . Machines Sabotaged . | . . . . Overloaded Fab Kills . | . . . . Hacking | -11 -10 -10 -9 --------- Run | Yrd Mat Min Mat Machines Accessed 4 | . 4 . . Terminals 4 | . 4 . . Fabricators . | . . . . Repair Stations . | . . . . Recycling Units . | . . . . Scanalyzers . | . . . . Garrison Access . | . . . . Total Hacks 10 | . 10 . . Successful 4 | . 4 . . Failed 6 | . 6 . . Catastrophic 1 | . 1 . . Database Lockouts . | . . . . Manual . | . . . . Terminals 10 | . 10 . . Fabricators . | . . . . Repair Stations . | . . . . Recycling Units . | . . . . Scanalyzers . | . . . . Garrison Access . | . . . . Terminal Hacks 4 | . 4 . . Record 3 | . 3 . . Locate Traps 1 | . 1 . . Fabricator Hacks . | . . . . Repair Station Hacks . | . . . . Recycling Unit Hacks . | . . . . Scanalyzer . | . . . . Garrison Access Hacks . | . . . . Unauthorized Hacks . | . . . . Terminals . | . . . . Fabricators . | . . . . Repair Stations . | . . . . Recycling Units . | . . . . Scanalyzers . | . . . . Garrison Access . | . . . . Data Cores Recovered . | . . . . Used . | . . . . Hacking Detections 4 | . 4 . . Full Trace Events 1 | . 1 . . Feedback Events . | . . . . Feedback Blocked . | . . . . Robot Schematics Acquired . | . . . . Robots Built . | . . . . Authchips . | . . . . Time . | . . . . Total Robot Build Rating . | . . . . Part Schematics Acquired . | . . . . Parts Built . | . . . . Authchips . | . . . . Time . | . . . . Total Part Build Rating . | . . . . Parts Repaired . | . . . . Time . | . . . . Parts Recycled . | . . . . Recycled Matter . | . . . . Retrieved Matter . | . . . . Retrieved Components . | . . . . Parts Scanalyzed . | . . . . Part Schematics Acquired . | . . . . Parts Damaged . | . . . . Bothacking | -11 -10 -10 -9 ------------ Run | Yrd Mat Min Mat Used RIF Installer . | . . . . Robots Hacked . | . . . . Non-combat . | . . . . Combat . | . . . . Robot Hacks Applied . | . . . . Relay Couplers Released . | . . . . Fabnet Peak Effective % . | . . . . Robots Rewired . | . . . . Allies Hacked . | . . . . Hacks Repelled . | . . . . Allies | -11 -10 -10 -9 -------- Run | Yrd Mat Min Mat Total Allies . | . . . . Largest Group . | . . . . Highest-Rated Group . | . . . . Highest-Rated Ally . | . . . . Total Orders . | . . . . Ally Attacks . | . . . . Total Damage . | . . . . Kills . | . . . . Allies Corrupted . | . . . . Allies Melted . | . . . . Intel | -11 -10 -10 -9 ------- Run | Yrd Mat Min Mat Robot Analysis Total . | . . . . Derelict Logs Recovered 2 | . . 2 . Drone Launches . | . . . . Drone Recoveries . | . . . . Exploration | -11 -10 -10 -9 ------------- Run | Yrd Mat Min Mat Turns Passed 995 | 106 422 417 50 Spaces Moved 771 | 79 272 379 41 Core 17 | 17 . . . Treads . | . . . . Legs 228 | 62 166 . . Wheels . | . . . . Hover 162 | . 81 81 . Flight 364 | . 25 298 41 Fastest Speed 31 | 50 32 56 31 Average Speed 98 | 104 98 103 31 Slowest Speed 120 | 120 120 117 31 Overloaded Moves . | . . . . Propulsion Burnouts . | . . . . Robots Hopped . | . . . . Cave-ins Triggered . | . . . . Exploration Rate (%) 27 | 6 30 65 7 Regions Visited 3 Branch Regions 1 Pre-discovered Areas 1 | . . 1 . Known Exits Taken . | . . . . Unknown Exits Taken 3 | 1 1 1 . Scrap Searched . | . . . . Spaces Dug . | . . . . Terrain Destroyed 55 | . . . 55 Melee . | . . . . Projectile . | . . . . AOE 55 | . . . 55 Terrain Rammed . | . . . . Walls Destroyed . | . . . . Machines Disabled . | . . . . Actions | -11 -10 -10 -9 --------- Run | Yrd Mat Min Mat Total 967 | 94 411 396 66 Wait 111 | . 107 2 2 Move 768 | 78 271 378 41 Hop . | . . . . Pick Up 25 | 7 8 5 5 Fast Attach 4 | . 3 1 . Attach 15 | 5 2 2 6 Detach . | . . . . Swap 4 | . 3 1 . Drop 17 | . 9 3 5 Fire 23 | 4 8 4 7 Melee . | . . . . Ram . | . . . . Kick . | . . . . Crush . | . . . . Escape Stasis . | . . . . Rewire . | . . . . Trap . | . . . . Miscellaneous . | . . . . Route ------- -11/Scrapyard -10/Materials -10/Mines -9/Materials History --------- Turn | Location | Event 2 | -11/Scrapyard | Met Revision 17 77 | -11/Scrapyard | Discovered new exit (range 8) 107 | -11/Scrapyard | Entered Materials 317 | -10/Materials | Build established: Mutant 462 | -10/Materials | Discovered new exit (range 9) 529 | -10/Materials | Entered Mines 541 | -10/Mines | Learned Materials stockpile data 552 | -10/Mines | Found a damaged Exp. Sensor Array with a note attached 553 | -10/Mines | Found Prototype Device 554 | -10/Mines | Identified Exp. Sensor Array 701 | -10/Mines | Learned location of Storage (-8) 781 | -10/Mines | Learned Materials terminal intel 929 | -10/Mines | Discovered new exit (range 16) 946 | -10/Mines | Entered Materials 946 | -9/Materials | Evolved 2 slots: Propulsion x2 948 | -9/Materials | Loaded intel: 12 terminal locations 996 | -9/Materials | Self-destructed Last Messages --------------- Acquired 3 matter. U-05 Engineer lays Concrete. S-10 Pest destroyed. Lgt. Ion Engine destroyed. U-05 Engineer lays Concrete. Y-45 Defender destroyed. U-05 Engineer lays Concrete. The unstable cave ceiling collapses. U-05 Engineer lays Concrete. The unstable cave ceiling collapses. U-05 Engineer lays Concrete. Acquired 80 matter. U-05 Engineer lays Concrete. The unstable cave ceiling collapses. U-05 Engineer lays Concrete. Dropped Rocket Launcher. Acquired Prototype Energy Gun. Identified Imp. EM Shotgun. Faulty integration triggers system corruption (+2). Map ----- +----------------------------------------------------+ | ?????????????????????????????????????????????????? | | ?????????????????????????????????????????????????? | | ?????????????????????????????????????????????????? | | ?????????????????????????????????????????????????? | | ?????????????????????????????????????????????????? | | ?????????????????????????????????????????????????? | | ?????????????????????????????????????????????????? | | ?????????????????????????????????????????????????? | | ?????????????????????????????????????????????????? | | ?????????????????????????????????????????????????? | | ?????????????????????????????????????????????????? | | ?????????????????????????????????????????????????? | | ?????????????????????????????????????????????????? | | ?????????????????????????????????????????????????? | | ?????????????????????????????????????????????????? | | ????????|????????????????????????????????????????? | | ?????????????????????????????????????????????????? | | ?????????????????????????????????????????????????? | | ?????????????????????????????##########??????????? | | ????????????????????????????# ?????""???? | | ???????????????????????????? ?????T????? | | ???????????????????????????? ????????????? | | ??????????????????????????? #??????????????? | | ??????????????????#######+## #??????????????? | | ??????????????????# ] #??????????????? | | ??????????????????+ """ @/= ##?????????????? | | ??????????????????# """ //= ####??????????? | | ??????????????????# """ /= #??????????? | | ??????????????????# ###?????????? | | ??????????????????# ## # #?????????? | | ??????????????????# ###????????? | | ??????????????????# #####????? | | ??????????????????####### # # ????? | | ?????????????????????# !!! #???????? | | ?????????????????????# !! [[ [ #????????? | | ?????????????????????# !! [ #?????????? | | ?????????????????????#### # #?????????? | | ???????????????############## ? ##????????? | | ??????????????## *]][ #????????? | | ??????????????+ * *[ #????????? | | ???????????????# [][ #????????? | | ??????????????????#/### ###+####### #????????? | | ??????????????????????# #? ?????? #????????? | | ??????????????????????# #? ?????? #????????? | | ??????????????????????# #""" ????? #????????? | | ??????????????????????#####""" !????? ????????? | | ??????????????????????????#""" ???? ???????? | | ??????????????????????????# ???? ??????? | | ???????????????????????????#######???#+#####?????? | | ???????????????????????????????????????????T?????? | +----------------------------------------------------+ Best States ------------- Heat Dissipation 28 Energy Generation 10 Energy Capacity 125 Matter Stores 300 Matter Capacity 300 Sight Range 16 Robot Scan Range 20 Terrain Scan Density 10 Evasion (%) 63 Targeting Accuracy 5 Item Schematics ----------------- None Robot Schematics ------------------ None Fabricated ------------ Nothing Alien Tech Used ----------------- None Achievements -------------- One Hack Too Far Challenges ------------ None Game ------ Seed NullActiveTreads Manual? 0 Play Time 00:20:04 Cumulative 1.1 hours Start 2024.04.18 @ 22:22:37 End 2024.04.18 @ 22:40:52 Sessions 1 Manual Loads 0 Difficulty Rogue Special Mode None Game No. 3 Rogue 3 Adventurer 0 Explorer 0 Win Type - Total 0 Types 0/0/0/0/0/0/0/0/0 Lore% 0 Gallery% 3 Achievement% 2 Wizard Run 0 Options --------- Layout 1 ASCII 0 Keyboard 0 Movement Mouse Keybinds 0 Fullscreen 1 Font 24/Smallcaps Map View 50x35 Zoom Use 0% Tactical HUD 0 Map Filters NONE Filters NONE Steam 0 RUN: 16c41a0a-cf78-4d69-bf1b-5bb6111ca69a